fUSD/lending_fUSD_20240121
["ID","MTS","AMOUNT","RATE_DAILY","PERIOD"]
[312381483,1705848633828,-965.41392225,0.00022202,2]
[312381484,1705848633839,-335.28400008,0.00022202,2]
[312381485,1705848633849,-249.82557624,0.00022202,2]
[312381486,1705848633858,-155.5410687,0.00022202,2]
[312381487,1705848633868,-200.39301605,0.00022202,2]
[312381488,1705848633878,-215.20285786,0.00022202,2]
[312381489,1705848633888,-260.15368191,0.00022202,2]
[312381490,1705848633897,-158.04475537,0.00022202,2]
[312381491,1705848633907,-155.69401226,0.00022202,2]
[312381492,1705848633916,-2024.60916251,0.00022203,2]
[312381493,1705848633926,-1057600.79097962,0.00022204,2]
[312381494,1705848633936,-500.0,0.00022204,2]
[312381495,1705848633945,-160.6463697,0.00022204,2]
[312381496,1705848633954,-155.4249365,0.00022204,2]
[312381497,1705848633964,-523.75608307,0.00022204,2]
[312381498,1705848633974,-175.14957679,0.00022204,2]
[312381499,1705848633984,-400.34058814,0.00022204,2]
[312381500,1705848633993,-281.56058951,0.00022204,2]
[312381501,1705848634003,-600.19132343,0.00022204,2]
[312381502,1705848634012,-160.94291649,0.00022204,2]
[312381503,1705848634021,-155.0,0.00022204,2]
[312381504,1705848634031,-1042.99625133,0.00022204,2]
[312381505,1705848634040,-155.8409457,0.00022204,2]
[312381506,1705848634049,-2024.73286782,0.00022204,2]
[312381507,1705848634058,-522.85587145,0.00022204,2]
[312381508,1705848634067,-401.57543249,0.00022204,2]
[312381509,1705848634076,-155.0,0.00022204,2]
[312381510,1705848634085,-400.0,0.00022204,2]
[312381511,1705848634097,-318.525335,0.00022204,2]
[312381512,1705848634106,-264.4930233,0.00022204,2]
[312381513,1705848634115,-156.01516368,0.00022204,2]
[312381514,1705848634125,-838.07830211,0.00022204,2]
[312381515,1705848634134,-6190.00923641,0.00022204,2]
[312381516,1705848634143,-324.93079599,0.00022204,2]
[312381517,1705848634152,-233.0510951,0.00022204,2]
[312381518,1705848634161,-18333.19865723,0.00022204,2]
[312381519,1705848634171,-785.97811472,0.00022204,2]
[312381520,1705848634180,-202.04855899,0.00022204,2]
[312381521,1705848634189,-240.89008817,0.00022204,2]
[312381522,1705848634199,-384.58030079,0.00022204,2]
[312381523,1705848634208,-307.42593914,0.00022204,2]
[312381524,1705848634217,-362.92400272,0.00022204,2]
[312381525,1705848634227,-181.62975253,0.00022204,2]
[312381526,1705848634236,-424.72948368,0.00022204,2]
[312381527,1705848634245,-155.45683396,0.00022204,2]
[312381528,1705848634254,-203.33123177,0.00022204,2]
[312381529,1705848634263,-337.09073552,0.00022204,2]
[312381530,1705848634272,-2605.44947505,0.00022204,2]
[312381531,1705848634281,-264.77290641,0.00022204,2]
[312381532,1705848634291,-345.76613305,0.00022204,2]
[312381533,1705848634300,-156.93056967,0.00022204,2]
[312381534,1705848634309,-209.38155424,0.00022204,2]
[312381535,1705848634318,-221.331888,0.00022204,2]
[312381536,1705848634327,-155.2592931,0.00022204,2]
[312381537,1705848634337,-161.08246614,0.00022204,2]
[312381538,1705848634346,-246.33521087,0.00022204,2]
[312381539,1705848634355,-404.58706104,0.00022204,2]
[312381540,1705848634363,-523.73781275,0.00022204,2]
[312381541,1705848634373,-236.14012151,0.00022204,2]
[312381542,1705848634382,-243.94761514,0.00022204,2]
[312381543,1705848634390,-155.0,0.00022204,2]
[312381544,1705848634399,-177.82092224,0.00022205,2]
[312381545,1705848634408,-155.48396173,0.00022205,2]
[312381546,1705848634417,-155.92659979,0.00022205,2]
[312381547,1705848634426,-262.5953698,0.00022205,2]
[312381548,1705848634435,-567.04871616,0.00022205,2]
[312381549,1705848634444,-300.19258432,0.00022205,2]
[312381550,1705848634453,-417.52146026,0.00022205,2]
[312381551,1705848634462,-2916.89243027,0.00022205,2]
[312381552,1705848634471,-376.165677,0.00022205,2]
[312381553,1705848634480,-235.65900379,0.00022205,2]
[312381554,1705848634490,-156.77132149,0.00022205,2]
[312381555,1705848634499,-640.3877892,0.00022205,2]
[312381556,1705848634508,-886.79371314,0.00022205,2]
[312381557,1705848634517,-382.5072126,0.00022205,2]
[312381558,1705848634526,-155.0,0.00022205,2]
[312381559,1705848634535,-251.70188647,0.00022205,2]
[312381560,1705848634544,-342.92124732,0.00022205,2]
[312381561,1705848634553,-1225.18380487,0.00022205,2]
[312381562,1705848634563,-157.9801797,0.00022205,2]
[312381563,1705848634572,-155.31278064,0.00022205,2]
[312381564,1705848634582,-42997.05845496,0.00022206,2]
[312381565,1705848634591,-1386.38282133,0.00022209,2]
[312381566,1705848634600,-447.34,0.00022218,2]
[312381567,1705848634609,-16211.32728311,0.00022233,2]
[312381568,1705848634618,-353.71,0.00022239,2]
[312381569,1705848634627,-447.34,0.00022241,2]
[312381570,1705848634636,-157.78,0.00022244,2]
[312381571,1705848634646,-243.84092624,0.00022247,2]
[312381572,1705848634654,-447.34,0.00022264,2]
[312381573,1705848634663,-368.19166572,0.00022274,2]
[312381574,1705848634672,-447.34,0.00022287,2]
[312381575,1705848634682,-1274.67845146,0.00022303,2]
[312381576,1705848634691,-447.34,0.00022311,2]
[312381577,1705848634700,-447.34,0.00022334,2]
[312381578,1705848634709,-447.34,0.00022357,2]
[312381579,1705848634718,-447.34,0.0002238,2]
[312381580,1705848634728,-447.34,0.00022403,2]
[312381581,1705848634741,-243.84092624,0.0002241,2]
[312381582,1705848634750,-447.34,0.00022427,2]
[312381583,1705848634759,-644.41,0.00022445,2]
[312381584,1705848634769,-178.30731027,0.0002245,2]
[312381585,1705848634782,-269.03268973,0.0002245,2]
[312381586,1705848634791,-373.48180507,0.00022502,2]
[312381587,1705848634802,-901.19664639,0.00022502,2]
[312381588,1705848634812,-243.84092624,0.00022573,2]
[312381589,1705848634823,-180.0,0.00022603,2]
[312381590,1705848634832,-173.84,0.00022653,2]
[312381591,1705848634841,-51.46922737,0.00022667,2]
[312381592,1705848634864,-229.71025626,0.00022667,2]
[312381593,1705848634873,-29.03974374,0.00022688,2]
[312381594,1705848634884,-420.43472508,0.00022688,2]
[312381595,1705848634897,-267.3,0.00022688,2]
[312381596,1705848634923,-310.31033412,0.00022688,2]
[312381597,1705848634933,-2384.46949878,0.000227,2]
[312381598,1705848634943,-1274.67845146,0.00022701,2]
[312381599,1705848634952,-157.9,0.00022706,2]
[312381600,1705848634962,-157.78,0.00022733,2]
[312381601,1705848634971,-243.84092624,0.00022737,2]
[312381602,1705848634980,-500.0,0.00022752,2]
[312381603,1705848635148,-355.00015144,0.00022798,2]
[312381604,1705848635192,-238.21316974,0.00022798,2]
[312381605,1705848635202,-157.10983001,0.000228,2]
[312381606,1705848635211,-198.58536634,0.000228,2]
[312381607,1705848635220,-215.39954746,0.00022872,2]
[312381608,1705848635230,-419.65429874,0.00022887,2]
[312381609,1705848635239,-226.69261519,0.0002289,2]
[312381610,1705848635249,-301.25336037,0.00022895,2]
[312381611,1705848635258,-157.35999409,0.00022895,2]
[312381612,1705848635267,-287.2230766,0.00022895,2]
[312381613,1705848635276,-156.29412186,0.00022895,2]
[312381614,1705848635286,-6437.51501996,0.00022895,2]
[312381615,1705848635295,-204.25460702,0.00022895,2]
[312381616,1705848635305,-195.20540532,0.00022895,2]
[312381617,1705848635317,-2246.77852355,0.00022895,2]
[312381618,1705848635326,-600.001725,0.00022896,2]
[312381619,1705848635336,-386.58368493,0.00022896,2]
[312381620,1705848635345,-155.0,0.00022896,2]
[312381621,1705848635356,-155.82017516,0.00022896,2]
[312381622,1705848635366,-1228.167174,0.00022896,2]
[312381623,1705848635375,-155.38567074,0.00022896,2]
[312381624,1705848635385,-368.57931405,0.00022896,2]
[312381625,1705848635394,-308.66059738,0.00022896,2]
[312381626,1705848635403,-255.81339565,0.00022896,2]
[312381627,1705848635413,-208.49754271,0.00022896,2]
[312381628,1705848635423,-564.44970192,0.00022896,2]
[312381629,1705848635432,-219.93074894,0.00022897,2]
[312381630,1705848635442,-167.08344621,0.00022897,2]
[312381631,1705848635451,-248.15907292,0.00022897,2]
[312381632,1705848635461,-219092.0916622,0.00022898,2]
[312381667,1705848638205,-454.30031542,0.00022898,2]
[312381669,1705848638217,-1197.93357264,0.00022898,2]
[312381673,1705848638236,-77833.81351702,0.00022898,2]
[312381675,1705848638245,-1658.04034707,0.00022898,2]
[312381677,1705848638254,-4273.6526089,0.00022899,2]
[312381678,1705848638263,-7994.14598,0.000229,2]
[312381680,1705848638273,-526.0,0.000229,2]
[312381682,1705848638281,-53737.0829,0.000229,2]
[312381684,1705848638290,-151.39793642,0.000229,2]
[312381685,1705848638299,-4223.5649433,0.000229,2]
[312381687,1705848638308,-4223.5649433,0.000229,2]
[312381689,1705848638317,-4223.5649433,0.000229,2]
[312381691,1705848638326,-4223.5649433,0.000229,2]
[312381693,1705848638335,-4223.5649433,0.000229,2]
[312381694,1705848638344,-243.84092624,0.000229,2]
[312381696,1705848638352,-4223.5649433,0.000229,2]
[312381698,1705848638361,-4223.5649433,0.000229,2]
[312381700,1705848638370,-4223.5649433,0.000229,2]
[312381702,1705848638379,-4223.5649433,0.000229,2]
[312381704,1705848638388,-4223.5649433,0.000229,2]
[312381705,1705848638396,-4223.5649433,0.000229,2]
[312381707,1705848638405,-4223.5649433,0.000229,2]
[312381709,1705848638414,-4223.5649433,0.000229,2]
[312381711,1705848638423,-4223.5649433,0.000229,2]
[312381713,1705848638432,-4223.5649433,0.000229,2]
[312381714,1705848638441,-1274.67845146,0.000229,2]
[312381716,1705848638450,-225.70184079,0.000229,6]
[312381718,1705848638459,-1469.75,0.00022975,2]
[312381720,1705848638468,-1706.77559572,0.00022975,3]
[312381722,1705848638477,-226.69261519,0.0002299,2]
[312381723,1705848638486,-263.27985263,0.00022998,2]
[312381725,1705848638495,-164.0104164,0.00022998,2]
[312381727,1705848638504,-2902.60645691,0.00022998,2]
[312381729,1705848638513,-523.92202884,0.00022998,2]
[312381731,1705848638522,-155.24002189,0.00022998,2]
[312381733,1705848638531,-211.75204362,0.00022998,2]
[312381735,1705848638540,-3857.0754299,0.00022998,2]
[312381737,1705848638549,-3626.06527258,0.00022998,2]
[312381738,1705848638558,-3677.99176611,0.00022998,4]
[312381740,1705848638567,-6358.400639,0.00022998,2]
[312381742,1705848638576,-1060.37719329,0.00022999,2]
[312381744,1705848638585,-1098.9596584,0.00022999,2]
[312381746,1705848638594,-1114358.87188014,0.00022999,3]
[312381748,1705848638603,-2365410.82257495,0.00023,2]
[312381750,1705848638612,-3196.91798374,0.00023,2]
[312381751,1705848638621,-157.18452114,0.00023,2]
[312381753,1705848638630,-5000.0,0.00023,2]
[312381755,1705848638639,-151.0,0.00023,7]
[312381757,1705848638648,-151.0,0.00023,7]
[312381759,1705848638657,-500.0,0.00023,7]
[312381761,1705848638666,-500.0,0.00023,7]
[312381763,1705848638675,-20641.2573105,0.0002301,2]
[312381764,1705848638684,-198.6737021,0.00023026,2]
[312381766,1705848638694,-2145.2821962,0.00023045,2]
[312381768,1705848638702,-25584.0411385,0.00023061,2]
[312381770,1705848638712,-159.08,0.00023109,2]
[312381772,1705848638721,-1027.08480294,0.00023126,2]
[312381773,1705848638730,-3325.3398929,0.0002313,2]
[312381775,1705848638742,-158.42,0.00023191,2]
[312381777,1705848638751,-158.89,0.00023208,2]
[312381779,1705848638760,-157.78,0.00023221,2]
[312381781,1705848638769,-644.41,0.00023245,2]
[312381783,1705848638779,-500.0,0.00023288,2]
[312381785,1705848638788,-599.80313864,0.00023288,2]
[312381787,1705848638799,-500.0,0.00023288,2]
[312381788,1705848638808,-499.99999999,0.00023288,2]
[312381790,1705848638818,-500.0,0.00023288,2]
[312381792,1705848638827,-204.19617201,0.00023288,2]
[312381794,1705848638836,-500.0,0.00023288,2]
[312381796,1705848638845,-347.25631901,0.00023288,2]
[312381798,1705848638854,-500.0,0.00023288,2]
[312381799,1705848638863,-500.0,0.00023288,2]
[312381801,1705848638873,-500.0,0.00023288,2]
[312381803,1705848638882,-500.0,0.00023288,2]
[312381805,1705848638892,-500.0,0.00023288,2]
[312381807,1705848638901,-500.0,0.00023288,2]
[312381808,1705848638917,-500.0,0.00023288,2]
[312381810,1705848638926,-500.0,0.00023288,2]
[312381812,1705848638935,-557.63895889,0.00023288,2]
[312381814,1705848638944,-500.0,0.00023288,2]
[312381816,1705848638954,-500.0,0.00023288,2]
[312381818,1705848638962,-500.0,0.00023288,2]
[312381820,1705848638971,-199.2634679,0.00023288,2]
[312381822,1705848638980,-486.17576963,0.00023288,2]
[312381824,1705848638990,-500.0,0.000233,2]
[312381825,1705848638999,-6204.54783651,0.00023385,2]
[312381827,1705848639008,-157.9,0.00023481,2]
[312381829,1705848639018,-157.78,0.0002371,2]
[312381831,1705848639028,-159.08,0.00023791,2]
[312381833,1705848639037,-500.0,0.00023848,2]
[312381835,1705848639046,-157.45,0.0002399,2]
[312381837,1705848639055,-500.0,0.00023999,2]
[312381839,1705848639064,-5000.0,0.00024,2]
[312381840,1705848639073,-441.72365449,0.00024,6]
[312381842,1705848639083,-1300.0,0.00024,3]
[312381844,1705848639092,-644.41,0.00024046,2]
[312381846,1705848639100,-299.999999,0.000241,2]
[312381848,1705848639109,-157.78,0.00024199,2]
[312381850,1705848639119,-205.0,0.00024243,6]
[312381852,1705848639128,-157.9,0.00024257,2]
[312381854,1705848639137,-500.0,0.00024396,2]
[312381856,1705848639146,-159.08,0.00024473,2]
[312381858,1705848639154,-158.89,0.00024501,2]
[312381860,1705848639164,-353.71,0.00024503,2]
[312381862,1705848639174,-1469.75,0.00024619,2]
[312381863,1705848639184,-1000.0,0.00024626,2]
[312381865,1705848639193,-250.0,0.00024658,2]
[312381867,1705848639202,-150.0,0.00024658,2]
[312381869,1705848639212,-150.0,0.00024658,2]
[312381871,1705848639221,-150.0,0.00024658,2]
[312381873,1705848639230,-150.0,0.00024658,2]
[312381875,1705848639239,-150.0,0.00024658,2]
[312381877,1705848639247,-150.0,0.00024658,2]
[312381879,1705848639256,-150.0,0.00024658,2]
[312381880,1705848639265,-150.0,0.00024658,2]
[312381882,1705848639274,-150.0,0.00024658,2]
[312381884,1705848639283,-150.0,0.00024658,2]
[312381886,1705848639292,-150.0,0.00024658,2]
[312381888,1705848639301,-150.0,0.00024658,2]
[312381890,1705848639311,-150.0,0.00024658,2]
[312381892,1705848639320,-150.0,0.00024658,2]
[312381894,1705848639329,-150.0,0.00024658,2]
[312381896,1705848639338,-150.0,0.00024658,2]
[312381898,1705848639347,-150.0,0.00024658,2]
[312381900,1705848639356,-150.0,0.00024658,2]
[312381902,1705848639365,-150.0,0.00024658,2]
[312381904,1705848639374,-153.65189727,0.00024658,2]
[312381905,1705848639384,-6204.54783651,0.00024665,2]
[312381907,1705848639393,-319.0,0.00024676,2]
[312381909,1705848639401,-340.594,0.00024676,2]
[312381911,1705848639410,-157.78,0.00024687,2]
[312381913,1705848639419,-25455.0,0.000247,2]
[312381915,1705848639429,-3029.0,0.000247,2]
[312381917,1705848639438,-644.41,0.00024847,2]
[312381919,1705848639447,-500.0,0.00024944,2]
[312381920,1705848639455,-500.0,0.00024999,2]
[312381922,1705848639464,-1000.0,0.00025,7]
[312381924,1705848639474,-157.9,0.00025032,2]
[312381926,1705848639482,-159.08,0.00025155,2]
[312381928,1705848639492,-158.42,0.00025185,2]
[312381930,1705848639501,-151.39793635,0.00025429,2]
[312381932,1705848639510,-500.0,0.00025492,2]
[312381934,1705848639519,-157.9,0.00025808,2]
[312381936,1705848639528,-159.08,0.00025836,2]
[312381938,1705848639537,-6204.54783651,0.00025946,2]
[312381940,1705848639546,-1350.0,0.00026,3]
[312381941,1705848639555,-500.0,0.0002604,2]
[312381943,1705848639564,-443.1626161,0.00026134,3]
[312381945,1705848639573,-225.70184078,0.00026227,11]
[312381947,1705848639582,-1469.75,0.00026263,2]
[312381949,1705848639591,-1000.0,0.00026376,2]
[312381951,1705848639600,-8666.31,0.00026575,2]
[312381953,1705848639609,-157.9,0.00026584,2]
[312381955,1705848639618,-353.71,0.00026767,2]
[312381957,1705848639627,-205.0,0.00026994,10]
[312381959,1705848639637,-416.0374,0.00027,2]
[312381960,1705848639645,-1000.0,0.00027089,2]
[312381962,1705848639655,-6204.54783651,0.00027226,2]
[312381964,1705848639664,-1000.0,0.00027397,2]
[312381966,1705848639673,-355.00015144,0.00027849,2]
[312381968,1705848639682,-238.21316974,0.00027849,2]
[312381970,1705848639691,-1469.75,0.00027907,2]
[312381972,1705848639701,-419.39,0.00027908,2]
[312381974,1705848639710,-689.17349675,0.00028,2]
[312381976,1705848639719,-203.14380127,0.00028,2]
[312381978,1705848639729,-1400.0,0.00028,3]
[312381980,1705848639741,-443.1626161,0.00028149,4]
[312381982,1705848639750,-6204.54783651,0.00028507,2]
[312381984,1705848639759,-151.39793635,0.00028754,2]
[312381986,1705848639769,-1000.0,0.00028767,2]
[312381987,1705848639779,-353.71,0.0002903,2]
[312381989,1705848639788,-155.47856455,0.000295,3]
[312381990,1705848639798,-1000.0,0.00029552,2]
[312381991,1705848639807,-205.0,0.00029744,14]
[312381993,1705848639818,-6204.54783651,0.00029787,2]
[312381995,1705848639831,-175.58250697,0.000298,2]
[312381997,1705848639841,-731.25712485,0.000298,2]
[312381999,1705848639851,-871.09976891,0.0002998,3]
[312382001,1705848639861,-100000.0,0.0003,2]
[312382003,1705848639871,-192.291184,0.0003,2]
[312382005,1705848639881,-357.91955435,0.0003,2]
[312382007,1705848639891,-590.49053743,0.0003,4]
[312382009,1705848639901,-692.18444448,0.0003,2]
[312382011,1705848639911,-764.11347582,0.0003,4]
[312382013,1705848639922,-155.0,0.0003,2]
[312382015,1705848639932,-2164.18588237,0.0003,4]
[312382017,1705848639941,-9643.13201467,0.0003,2]
[312382020,1705848639951,-582.86728053,0.0003,2]
[312382023,1705848639961,-10005.00126192,0.0003,5]
[312382025,1705848639970,-600.0,0.0003,2]
[312382029,1705848639981,-385.33437469,0.0003,7]
[312382032,1705848639991,-1450.0,0.0003,3]
[312382034,1705848640001,-150.0,0.0003,7]
[312382068,1705848640170,-3000.0,0.0003,2]
[312382071,1705848640179,-3000.0,0.0003,2]
[312382074,1705848640189,-3000.0,0.0003,2]
[312382077,1705848640198,-3000.0,0.0003,2]
[312382080,1705848640207,-3000.0,0.0003,2]
[312382083,1705848640216,-3000.0,0.0003,2]
[312382086,1705848640225,-450.0,0.0003002,3]
[312382089,1705848640233,-1000.0,0.00030136,2]
[312382092,1705848640242,-152.04,0.00030137,2]
[312382095,1705848640251,-153.98,0.00030137,2]
[312382098,1705848640260,-443.1626161,0.00030163,4]
[312382101,1705848640268,-3947.41,0.0003059,14]
[312382104,1705848640277,-170.13,0.00030886,2]
[312382106,1705848640285,-100000.0,0.00031,2]
[312382108,1705848640294,-5840.82062477,0.00031,4]
[312382111,1705848640303,-450.0,0.00031012,3]
[312382114,1705848640312,-6204.54783651,0.00031068,2]
[312382119,1705848640321,-152.04,0.00031213,2]
[312382122,1705848640330,-353.71,0.00031294,2]
[312382125,1705848640339,-185.29,0.00031477,120]
[312382128,1705848640348,-1000.0,0.000315,2]
[312382130,1705848640356,-1000.0,0.00031506,2]
[312382133,1705848640365,-179.66,0.00031507,2]
[312382136,1705848640374,-155.6862248,0.00031676,4]
[312382139,1705848640383,-728.21703114,0.00031677,4]
[312382142,1705848640392,-389664.387455,0.000318,3]
[312382145,1705848640400,-2894.06638396,0.00031998,2]
[312382148,1705848640409,-23550.18892889,0.00031998,5]
[312382150,1705848640418,-100000.0,0.00032,2]
[312382153,1705848640427,-155.0,0.00032,2]
[312382155,1705848640435,-181.2462356,0.00032,2]
[312382158,1705848640444,-13085.45929543,0.00032,4]
[312382161,1705848640453,-1000.0,0.00032,15]
[312382164,1705848640462,-200000.0,0.00032,2]
[312382166,1705848640471,-45987.39629618,0.00032,2]
[312382176,1705848640518,-368232.93041353,0.00032,2]
[312382180,1705848640529,-354584.75924408,0.00032,2]
[312382183,1705848640544,-1029.336,0.00032,2]
[312382187,1705848640554,-255.79377709,0.00032,2]
[312382190,1705848640565,-31428.90840121,0.00032,2]
[312382193,1705848640576,-8355.461751,0.00032,2]
[312382196,1705848640587,-37616.033428,0.00032,2]
[312382200,1705848640605,-2062.21623981,0.00032,2]
[312382204,1705848640616,-9759.89466712,0.00032,2]
[312382207,1705848640627,-68451.82952525,0.00032,2]
[312382210,1705848640638,-83815.43486401,0.00032,2]
[312382216,1705848640664,-556091.02510375,0.00032,2]
[312382219,1705848640673,-15560.0,0.00032,7]
[312382222,1705848640682,-485.53201373,0.00032,4]
[312382224,1705848640690,-151.0,0.00032,7]
[312382227,1705848640699,-151.0,0.00032,7]
[312382230,1705848640708,-151.0,0.00032,7]
[312382233,1705848640717,-188.0,0.00032,7]
[312382236,1705848640729,-500.0,0.00032,7]
[312382238,1705848640742,-500.0,0.00032,7]
[312382242,1705848640752,-500.0,0.00032,7]
[312382245,1705848640761,-500.0,0.00032,7]
[312382248,1705848640773,-151.0,0.00032,7]
[312382250,1705848640782,-151.0,0.00032,7]
[312382253,1705848640792,-151.0,0.00032,7]
[312382256,1705848640802,-199.815239,0.00032,7]
[312382259,1705848640815,-199.815239,0.00032,7]
[312382261,1705848640825,-161.635064,0.00032,7]
[312382264,1705848640834,-161.635064,0.00032,7]
[312382267,1705848640843,-161.635064,0.00032,7]
[312382271,1705848640852,-161.635064,0.00032,7]
[312382273,1705848640860,-267.670469,0.00032,7]
[312382276,1705848640869,-151.0,0.00032,7]
[312382279,1705848640878,-156.062007,0.00032,7]
[312382282,1705848640887,-153.40198,0.00032,7]
[312382284,1705848640896,-153.40198,0.00032,7]
[312382286,1705848640905,-153.40198,0.00032,7]
[312382288,1705848640914,-153.40198,0.00032,7]
[312382290,1705848640923,-151.0,0.00032,7]
[312382292,1705848640931,-151.0,0.00032,7]
[312382295,1705848640940,-151.0,0.00032,7]
[312382297,1705848640949,-151.0,0.00032,7]
[312382300,1705848640957,-151.0,0.00032,7]
[312382303,1705848640966,-151.0,0.00032,7]
[312382307,1705848640975,-151.0,0.00032,7]
[312382310,1705848640985,-165.068054,0.00032,7]
[312382313,1705848640993,-151.0,0.00032,7]
[312382316,1705848641004,-151.0,0.00032,7]
[312382319,1705848641014,-151.0,0.00032,7]
[312382322,1705848641023,-151.0,0.00032,7]
[312382325,1705848641032,-151.0,0.00032,7]
[312382328,1705848641041,-151.0,0.00032,7]
[312382331,1705848641052,-151.0,0.00032,7]
[312382334,1705848641061,-990.0,0.00032,7]
[312382337,1705848641070,-151.0,0.00032,7]
[312382340,1705848641079,-151.0,0.00032,7]
[312382343,1705848641088,-1500.0,0.00032,3]
[312382346,1705848641097,-151.0,0.00032,7]
[312382349,1705848641106,-151.0,0.00032,7]
[312382352,1705848641122,-151.0,0.00032,7]
[312382358,1705848641141,-152.255596,0.00032,7]
[312382362,1705848641158,-151.0,0.00032,7]
[312382369,1705848641177,-187.971555,0.00032,7]
[312382372,1705848641192,-187.971555,0.00032,7]
[312382377,1705848641209,-188.852316,0.00032,7]
[312382382,1705848641225,-757.54413,0.00032,7]
[312382385,1705848641240,-757.54413,0.00032,7]
[312382392,1705848641258,-151.0,0.00032,7]
[312382395,1705848641275,-151.0,0.00032,7]
[312382402,1705848641294,-616.316148,0.00032,7]
[312382407,1705848641314,-616.316148,0.00032,7]
[312382410,1705848641330,-151.0,0.00032,7]
[312382415,1705848641344,-151.0,0.00032,7]
[312382419,1705848641360,-151.0,0.00032,7]
[312382423,1705848641375,-151.0,0.00032,7]
[312382428,1705848641388,-151.0,0.00032,7]
[312382433,1705848641408,-151.0,0.00032,7]
[312382438,1705848641422,-151.0,0.00032,7]
[312382441,1705848641437,-3291.684164,0.00032,7]
[312382446,1705848641452,-3291.684164,0.00032,7]
[312382450,1705848641466,-3291.684164,0.00032,7]
[312382454,1705848641482,-3291.684164,0.00032,7]
[312382459,1705848641498,-428.067621,0.00032,7]
[312382462,1705848641513,-428.067621,0.00032,7]
[312382467,1705848641528,-428.067621,0.00032,7]
[312382472,1705848641544,-428.067621,0.00032,7]
[312382475,1705848641559,-394.302835,0.00032,7]
[312382480,1705848641575,-394.302835,0.00032,7]
[312382483,1705848641590,-394.302835,0.00032,7]
[312382488,1705848641604,-394.302835,0.00032,7]
[312382491,1705848641619,-907.808966,0.00032,7]
[312382496,1705848641634,-907.808966,0.00032,7]
[312382501,1705848641648,-907.808966,0.00032,7]
[312382504,1705848641663,-907.808966,0.00032,7]
[312382509,1705848641678,-4016.5346523,0.00032,2]
[312382513,1705848641693,-450.0,0.00032004,3]
[312382517,1705848641708,-230.9345329,0.00032057,2]
[312382522,1705848641724,-151.39793635,0.00032079,2]
[312382525,1705848641739,-443.1626161,0.00032178,5]
[312382529,1705848641754,-152.04,0.0003229,2]
[312382532,1705848641769,-6204.54783651,0.00032348,4]
[312382534,1705848641786,-205.0,0.00032495,18]
[312382537,1705848641801,-657.92308016,0.000325,2]
[312382540,1705848641818,-168.93633082,0.00032635,2]
[312382542,1705848641834,-58773.31891619,0.000328,3]
[312382545,1705848641848,-462.98138488,0.00032805,7]
[312382548,1705848641864,-462.98138488,0.00032873,7]
[312382550,1705848641879,-574.85235398,0.00032876,7]
[312382553,1705848641895,-500.0,0.00032876,7]
[312382556,1705848641911,-500.0,0.00032876,7]
[312382558,1705848641926,-422.51770321,0.00032876,7]
[312382561,1705848641942,-500.0,0.00032876,7]
[312382564,1705848641958,-500.0,0.00032876,7]
[312382566,1705848641974,-500.0,0.00032876,7]
[312382569,1705848641988,-500.0,0.00032876,7]
[312382572,1705848642003,-500.0,0.00032876,7]
[312382574,1705848642017,-500.0,0.00032876,7]
[312382577,1705848642031,-500.0,0.00032876,7]
[312382579,1705848642047,-500.0,0.00032876,7]
[312382582,1705848642063,-500.0,0.00032876,7]
[312382585,1705848642077,-418.22921917,0.00032876,7]
[312382587,1705848642092,-208.36104413,0.00032876,7]